[Event "*** Titled Tuesday Blitz"]
[Site "Chess.com"]
[Date "2020.12.29"]
[Round "4"]
[White "MF1966Idrisov"]
[Black "EdmundPlayer"]
[Result "1/2-1/2"]
[WhiteElo "2376"]
[BlackElo "2202"]
[TimeControl "180+1"]
[EndTime "10:39:52 PST"]
[Termination "Game drawn - insufficient material"]

1. Nf3 {[%clk 0:03:00.9]} 1... c5 {[%clk 0:02:58.1]} 2. b3 {[%clk 0:03:00.8]}
2... Nc6 {[%clk 0:02:53.2]} 3. Bb2 {[%clk 0:02:59.9]} 3... d5 {[%clk 0:02:51.9]}
4. e3 {[%clk 0:02:59.4]} 4... Bg4 {[%clk 0:02:47.2]} 5. Be2 {[%clk 0:02:59.1]}
5... e6 {[%clk 0:02:46.1]} 6. d4 {[%clk 0:02:59]} 6... Nf6 {[%clk 0:02:45.2]} 7.
O-O {[%clk 0:02:58.4]} 7... cxd4 {[%clk 0:02:40.3]} 8. Nxd4 {[%clk 0:02:57.4]}
8... Bxe2 {[%clk 0:02:39.6]} 9. Qxe2 {[%clk 0:02:56]} 9... Nxd4 {[%clk
0:02:32.1]} 10. Bxd4 {[%clk 0:02:52.4]} 10... Bd6 {[%clk 0:02:26.2]} 11. Qb5+
{[%clk 0:02:45.5]} 11... Qd7 {[%clk 0:02:22.9]} 12. Qxd7+ {[%clk 0:02:45.4]}
12... Kxd7 {[%clk 0:02:22.1]} 13. Nd2 {[%clk 0:02:43.4]} 13... e5 {[%clk
0:02:15.7]} 14. Bb2 {[%clk 0:02:42.9]} 14... Rac8 {[%clk 0:02:14.5]} 15. c4
{[%clk 0:02:42.6]} 15... Ke6 {[%clk 0:01:49.4]} 16. cxd5+ {[%clk 0:02:38.8]}
16... Nxd5 {[%clk 0:01:48.3]} 17. Ne4 {[%clk 0:02:28.5]} 17... Be7 {[%clk
0:01:46.8]} 18. Rac1 {[%clk 0:02:23.9]} 18... f5 {[%clk 0:01:36.4]} 19. Nd2
{[%clk 0:02:15.5]} 19... Rhd8 {[%clk 0:01:26.9]} 20. Nc4 {[%clk 0:02:10.6]}
20... Bf6 {[%clk 0:01:23.9]} 21. a4 {[%clk 0:02:10]} 21... Nb4 {[%clk
0:01:14.1]} 22. Ba3 {[%clk 0:01:59.4]} 22... Nd3 {[%clk 0:01:06.9]} 23. Rcd1
{[%clk 0:01:55.5]} 23... e4 {[%clk 0:01:02.2]} 24. f3 {[%clk 0:01:55.2]} 24...
a6 {[%clk 0:00:55.6]} 25. g4 {[%clk 0:01:38.2]} 25... g6 {[%clk 0:00:48.8]} 26.
a5 {[%clk 0:01:21.4]} 26... exf3 {[%clk 0:00:37.6]} 27. gxf5+ {[%clk 0:01:20.8]}
27... gxf5 {[%clk 0:00:34.2]} 28. Rxf3 {[%clk 0:01:17.1]} 28... Rg8+ {[%clk
0:00:31.6]} 29. Kh1 {[%clk 0:01:11.1]} 29... Rcd8 {[%clk 0:00:31.1]} 30. Rdf1
{[%clk 0:01:10.7]} 30... Rg5 {[%clk 0:00:24.3]} 31. e4 {[%clk 0:01:10.1]} 31...
f4 {[%clk 0:00:23.4]} 32. Nd6 {[%clk 0:01:05.9]} 32... Ne5 {[%clk 0:00:20.5]}
33. Rxf4 {[%clk 0:01:02.6]} 33... Be7 {[%clk 0:00:20.4]} 34. Nf5 {[%clk
0:01:01.1]} 34... Bxa3 {[%clk 0:00:19.3]} 35. Rh4 {[%clk 0:00:58.1]} 35... Rdg8
{[%clk 0:00:15.2]} 36. Rxh7 {[%clk 0:00:56.8]} 36... Bc5 {[%clk 0:00:13.5]} 37.
h4 {[%clk 0:00:53.8]} 37... Rg1+ {[%clk 0:00:12.6]} 38. Rxg1 {[%clk 0:00:52.3]}
38... Rxg1+ {[%clk 0:00:13.1]} 39. Kh2 {[%clk 0:00:52.6]} 39... Ng4+ {[%clk
0:00:12.6]} 40. Kh3 {[%clk 0:00:49.9]} 40... Nf2+ {[%clk 0:00:12.9]} 41. Kh2
{[%clk 0:00:50]} 41... Nxe4 {[%clk 0:00:11.4]} 42. Ng7+ {[%clk 0:00:46.6]} 42...
Kd5 {[%clk 0:00:10.8]} 43. Rh5+ {[%clk 0:00:45.9]} 43... Kd4 {[%clk 0:00:10.6]}
44. Rxc5 {[%clk 0:00:46]} 44... Nxc5 {[%clk 0:00:09.1]} 45. Kxg1 {[%clk
0:00:45.2]} 45... Nxb3 {[%clk 0:00:09.4]} 46. h5 {[%clk 0:00:43.8]} 46... Ke5
{[%clk 0:00:09.8]} 47. Ne8 {[%clk 0:00:41.4]} 47... Kf5 {[%clk 0:00:09.2]} 48.
Nd6+ {[%clk 0:00:40.9]} 48... Kg5 {[%clk 0:00:08.9]} 49. Nxb7 {[%clk 0:00:41]}
49... Kxh5 {[%clk 0:00:09.2]} 50. Kf2 {[%clk 0:00:41.2]} 50... Kg5 {[%clk
0:00:09.7]} 51. Ke3 {[%clk 0:00:41.5]} 51... Kf5 {[%clk 0:00:10]} 52. Kd3 {[%clk
0:00:41.8]} 52... Ke5 {[%clk 0:00:09.8]} 53. Kc4 {[%clk 0:00:42]} 53... Nxa5+
{[%clk 0:00:09.5]} 54. Nxa5 {[%clk 0:00:41.7]} 54... Kd6 {[%clk 0:00:09.8]} 55.
Kb4 {[%clk 0:00:40.9]} 55... Ke5 {[%clk 0:00:09.4]} 56. Nc6+ {[%clk 0:00:39.5]}
56... Kd6 {[%clk 0:00:09.1]} 57. Nd4 {[%clk 0:00:39.3]} 57... a5+ {[%clk
0:00:09.1]} 58. Ka4 {[%clk 0:00:39.6]} 58... Kd5 {[%clk 0:00:09.3]} 59. Nc2
{[%clk 0:00:39.9]} 59... Kc4 {[%clk 0:00:09.3]} 60. Na3+ {[%clk 0:00:40.8]}
60... Kc3 {[%clk 0:00:08.7]} 61. Nb5+ {[%clk 0:00:41.7]} 61... Kc4 {[%clk
0:00:08.6]} 62. Nd6+ {[%clk 0:00:42.6]} 62... Kc5 {[%clk 0:00:08.9]} 63. Nf7
{[%clk 0:00:43.5]} 63... Kc4 {[%clk 0:00:09.8]} 64. Ng5 {[%clk 0:00:43.6]} 64...
Kc5 {[%clk 0:00:10.7]} 65. Ne4+ {[%clk 0:00:44]} 65... Kc4 {[%clk 0:00:11.6]}
66. Nd6+ {[%clk 0:00:44]} 66... Kc5 {[%clk 0:00:12.5]} 67. Nb7+ {[%clk
0:00:44.3]} 67... Kc4 {[%clk 0:00:13.4]} 68. Nd8 {[%clk 0:00:43.4]} 68... Kc5
{[%clk 0:00:14.3]} 69. Ne6+ {[%clk 0:00:43.7]} 69... Kc4 {[%clk 0:00:15.2]} 70.
Ka3 {[%clk 0:00:43]} 70... a4 {[%clk 0:00:13.5]} 71. Nc7 {[%clk 0:00:42]} 71...
Kc5 {[%clk 0:00:14.4]} 72. Na6+ {[%clk 0:00:41.8]} 72... Kc6 {[%clk 0:00:15.3]}
73. Nb4+ {[%clk 0:00:41.7]} 73... Kd6 {[%clk 0:00:16.2]} 74. Kxa4 {[%clk
0:00:41.7]} 1/2-1/2

[Event "*** Titled Tuesday Blitz"]
[Site "Chess.com"]
[Date "2020.12.29"]
[Round "4"]
[White "Leo_C"]
[Black "Brave_spirit12"]
[Result "0-1"]
[WhiteElo "2350"]
[BlackElo "2538"]
[TimeControl "180+1"]
[EndTime "10:39:55 PST"]
[Termination "Brave_spirit12 won by resignation"]

1. d4 {[%clk 0:03:00.9]} 1... e6 {[%clk 0:03:00.5]} 2. c4 {[%clk 0:02:59.8]}
2... Nf6 {[%clk 0:03:01]} 3. Nc3 {[%clk 0:02:59.2]} 3... d5 {[%clk 0:03:01.2]}
4. cxd5 {[%clk 0:02:58.9]} 4... exd5 {[%clk 0:03:02.1]} 5. Bg5 {[%clk
0:02:58.2]} 5... Be7 {[%clk 0:03:02.5]} 6. e3 {[%clk 0:02:58.4]} 6... O-O {[%clk
0:03:03]} 7. Bd3 {[%clk 0:02:58.6]} 7... c6 {[%clk 0:03:03.5]} 8. Nge2 {[%clk
0:02:57.3]} 8... h6 {[%clk 0:03:03.7]} 9. Bh4 {[%clk 0:02:57]} 9... Re8 {[%clk
0:03:02.8]} 10. Qc2 {[%clk 0:02:52.3]} 10... Na6 {[%clk 0:03:01.4]} 11. a3
{[%clk 0:02:51.4]} 11... Nc7 {[%clk 0:03:01.1]} 12. f3 {[%clk 0:02:48.6]} 12...
g5 {[%clk 0:02:58.9]} 13. Bf2 {[%clk 0:02:47.7]} 13... Bd6 {[%clk 0:02:58.3]}
14. h3 {[%clk 0:02:42.9]} 14... b6 {[%clk 0:02:53]} 15. e4 {[%clk 0:02:38.6]}
15... dxe4 {[%clk 0:02:45.4]} 16. fxe4 {[%clk 0:02:38]} 16... Nh5 {[%clk
0:02:44.8]} 17. e5 {[%clk 0:02:25.9]} 17... Bf8 {[%clk 0:02:42.6]} 18. O-O-O
{[%clk 0:02:19.4]} 18... Ba6 {[%clk 0:02:41.5]} 19. Bxa6 {[%clk 0:02:13.6]}
19... Nxa6 {[%clk 0:02:42.4]} 20. Ne4 {[%clk 0:02:12.4]} 20... Rc8 {[%clk
0:02:36.3]} 21. g4 {[%clk 0:02:10.6]} 21... f5 {[%clk 0:02:05.7]} 22. gxf5
{[%clk 0:01:54.3]} 22... c5 {[%clk 0:01:48.6]} 23. dxc5 {[%clk 0:01:50.7]} 23...
Qe7 {[%clk 0:01:36.2]} 24. Qc4+ {[%clk 0:01:41]} 24... Qf7 {[%clk 0:01:33.5]}
25. Qxf7+ {[%clk 0:01:19.8]} 25... Kxf7 {[%clk 0:01:34.4]} 26. Rd7+ {[%clk
0:01:19.3]} 26... Kg8 {[%clk 0:01:26.3]} 27. Rxa7 {[%clk 0:01:16]} 27... Nxc5
{[%clk 0:01:24.2]} 28. Nxc5 {[%clk 0:01:11.4]} 28... Bxc5 {[%clk 0:01:25.1]} 29.
Bxc5 {[%clk 0:01:11]} 29... Rxc5+ {[%clk 0:01:24.8]} 30. Kb1 {[%clk 0:01:11.1]}
30... Rcxe5 {[%clk 0:01:23.9]} 31. Nd4 {[%clk 0:01:08.7]} 31... Ng3 {[%clk
0:01:15.1]} 32. Rc1 {[%clk 0:01:03.7]} 32... R5e7 {[%clk 0:01:06.5]} 33. Rxe7
{[%clk 0:00:57]} 33... Rxe7 {[%clk 0:01:07.4]} 34. Rc6 {[%clk 0:00:54.5]} 34...
Rd7 {[%clk 0:01:02.5]} 35. Nf3 {[%clk 0:00:32.4]} 35... Nxf5 {[%clk 0:00:58.3]}
36. Rxb6 {[%clk 0:00:31.8]} 36... Rd3 {[%clk 0:00:56.5]} 37. Ne5 {[%clk
0:00:26.5]} 37... Rxh3 {[%clk 0:00:54.2]} 38. a4 {[%clk 0:00:26.7]} 38... Re3
{[%clk 0:00:48.3]} 39. Ng4 {[%clk 0:00:26.2]} 39... Re1+ {[%clk 0:00:48.4]} 40.
Ka2 {[%clk 0:00:26.4]} 40... Kg7 {[%clk 0:00:48.8]} 41. a5 {[%clk 0:00:25.1]}
41... Re4 {[%clk 0:00:48.7]} 42. Rb7+ {[%clk 0:00:17.7]} 42... Kf8 {[%clk
0:00:37]} 43. Rb8+ {[%clk 0:00:16.9]} 43... Ke7 {[%clk 0:00:36.1]} 44. Rb7+
{[%clk 0:00:15.1]} 44... Kd8 {[%clk 0:00:35.1]} 45. Rf7 {[%clk 0:00:13.6]} 45...
Rxg4 {[%clk 0:00:32.5]} 46. Rxf5 {[%clk 0:00:13.5]} 46... Ke7 {[%clk 0:00:32.8]}
47. Ka3 {[%clk 0:00:11.9]} 47... Ke6 {[%clk 0:00:31.8]} 48. Rb5 {[%clk
0:00:11.4]} 48... Rd4 {[%clk 0:00:26.1]} 49. Rb6+ {[%clk 0:00:10.7]} 49... Rd6
{[%clk 0:00:26.4]} 50. Rb3 {[%clk 0:00:09.5]} 50... g4 {[%clk 0:00:23.7]} 51.
Ka4 {[%clk 0:00:09.8]} 51... h5 {[%clk 0:00:23.1]} 52. Kb5 {[%clk 0:00:10.2]}
52... h4 {[%clk 0:00:20.4]} 53. a6 {[%clk 0:00:10.3]} 53... Rd8 {[%clk
0:00:19.9]} 54. a7 {[%clk 0:00:10.5]} 54... g3 {[%clk 0:00:18.6]} 55. Kb6 {[%clk
0:00:09.3]} 55... g2 {[%clk 0:00:15.1]} 56. Re3+ {[%clk 0:00:09.2]} 56... Kf5
{[%clk 0:00:15]} 57. Re1 {[%clk 0:00:09.3]} 57... h3 {[%clk 0:00:15.1]} 58. Rd1
{[%clk 0:00:08.2]} 58... Rxd1 {[%clk 0:00:12.9]} 59. a8=Q {[%clk 0:00:08.3]}
59... g1=Q+ {[%clk 0:00:13.3]} 60. Kb5 {[%clk 0:00:08.8]} 60... Qf1+ {[%clk
0:00:13.1]} 0-1

[Event "*** Titled Tuesday Blitz"]
[Site "Chess.com"]
[Date "2020.12.29"]
[Round "4"]
[White "Chessdreamer2020"]
[Black "HaryKane"]
[Result "1/2-1/2"]
[WhiteElo "2492"]
[BlackElo "2674"]
[TimeControl "180+1"]
[EndTime "10:39:58 PST"]
[Termination "Game drawn - insufficient material"]

1. e4 {[%clk 0:03:00.9]} 1... e6 {[%clk 0:02:59.8]} 2. d4 {[%clk 0:03:00.5]}
2... d5 {[%clk 0:03:00.2]} 3. Nd2 {[%clk 0:03:01.4]} 3... Be7 {[%clk 0:03:00.4]}
4. Bd3 {[%clk 0:03:00.4]} 4... c5 {[%clk 0:02:58.5]} 5. dxc5 {[%clk 0:02:58.9]}
5... Nf6 {[%clk 0:02:57.8]} 6. Qe2 {[%clk 0:02:57.1]} 6... O-O {[%clk 0:02:55]}
7. Ngf3 {[%clk 0:02:56.9]} 7... a5 {[%clk 0:02:54.8]} 8. O-O {[%clk 0:02:54.5]}
8... Na6 {[%clk 0:02:54.7]} 9. Re1 {[%clk 0:02:44.1]} 9... Nxc5 {[%clk
0:02:53.1]} 10. e5 {[%clk 0:02:42.1]} 10... Nfd7 {[%clk 0:02:48.5]} 11. Nb3
{[%clk 0:02:40.4]} 11... b6 {[%clk 0:02:42.5]} 12. Bb5 {[%clk 0:02:38.7]} 12...
Ba6 {[%clk 0:02:23.7]} 13. Bxa6 {[%clk 0:02:31.6]} 13... Rxa6 {[%clk 0:02:18.6]}
14. Nbd4 {[%clk 0:02:29]} 14... Qc7 {[%clk 0:02:06.1]} 15. c3 {[%clk 0:02:27.6]}
15... Raa8 {[%clk 0:02:04.7]} 16. h4 {[%clk 0:02:25.1]} 16... Rfc8 {[%clk
0:02:01]} 17. h5 {[%clk 0:02:24.5]} 17... Nf8 {[%clk 0:01:59.8]} 18. h6 {[%clk
0:02:24.1]} 18... g6 {[%clk 0:02:00.2]} 19. Bg5 {[%clk 0:02:22.3]} 19... Ne4
{[%clk 0:01:57.1]} 20. Bxe7 {[%clk 0:02:19.1]} 20... Qxe7 {[%clk 0:01:58]} 21.
Qe3 {[%clk 0:02:11.9]} 21... a4 {[%clk 0:01:51.4]} 22. a3 {[%clk 0:02:11.5]}
22... Nd7 {[%clk 0:01:50.5]} 23. Qf4 {[%clk 0:02:10.1]} 23... Rf8 {[%clk
0:01:37.5]} 24. Qg4 {[%clk 0:01:33.1]} 24... f5 {[%clk 0:01:29.5]} 25. exf6
{[%clk 0:01:28.6]} 25... Rxf6 {[%clk 0:01:29.3]} 26. Rxe4 {[%clk 0:01:14.2]}
26... dxe4 {[%clk 0:01:30.2]} 27. Qxe4 {[%clk 0:01:14.5]} 27... Raf8 {[%clk
0:01:27.7]} 28. Re1 {[%clk 0:01:13]} 28... e5 {[%clk 0:01:07.9]} 29. Nc6 {[%clk
0:01:05.9]} 29... Qe6 {[%clk 0:01:05.7]} 30. Ncxe5 {[%clk 0:00:58.3]} 30... Nxe5
{[%clk 0:01:05.3]} 31. Qxe5 {[%clk 0:00:58.1]} 31... Qxe5 {[%clk 0:01:05.3]} 32.
Rxe5 {[%clk 0:00:58.6]} 32... Rf5 {[%clk 0:00:47.6]} 33. Re4 {[%clk 0:00:43.9]}
33... b5 {[%clk 0:00:39.6]} 34. Re7 {[%clk 0:00:40.1]} 34... Rh5 {[%clk
0:00:21.9]} 35. Nd4 {[%clk 0:00:37.5]} 35... Rxh6 {[%clk 0:00:20.6]} 36. Nxb5
{[%clk 0:00:36]} 36... Rb8 {[%clk 0:00:20.4]} 37. Re5 {[%clk 0:00:35.6]} 37...
Rh5 {[%clk 0:00:17.3]} 38. Rxh5 {[%clk 0:00:34.8]} 38... gxh5 {[%clk 0:00:18.2]}
39. c4 {[%clk 0:00:35.4]} 39... Kf7 {[%clk 0:00:18.5]} 40. Kh2 {[%clk
0:00:33.7]} 40... Kf6 {[%clk 0:00:15.9]} 41. Kg3 {[%clk 0:00:34]} 41... Rc8
{[%clk 0:00:16.3]} 42. Nd6 {[%clk 0:00:32.5]} 42... Rc6 {[%clk 0:00:15.1]} 43.
Ne4+ {[%clk 0:00:28.4]} 43... Ke5 {[%clk 0:00:15.3]} 44. Nd2 {[%clk 0:00:27.6]}
44... Kd4 {[%clk 0:00:14.1]} 45. Kh4 {[%clk 0:00:24.9]} 45... Kd3 {[%clk
0:00:13]} 46. Nf3 {[%clk 0:00:25.1]} 46... Rxc4+ {[%clk 0:00:13.1]} 47. Kxh5
{[%clk 0:00:25.4]} 47... Kc2 {[%clk 0:00:12.8]} 48. g4 {[%clk 0:00:21.2]} 48...
Kxb2 {[%clk 0:00:12.5]} 49. g5 {[%clk 0:00:21.8]} 49... Kxa3 {[%clk 0:00:11.1]}
50. Kh6 {[%clk 0:00:22.4]} 50... Rf4 {[%clk 0:00:10.3]} 51. Ne5 {[%clk
0:00:18.1]} 51... Rh4+ {[%clk 0:00:10.2]} 52. Kg7 {[%clk 0:00:18.1]} 52... Kb3
{[%clk 0:00:10.5]} 53. Nd3 {[%clk 0:00:17.2]} 53... a3 {[%clk 0:00:10.4]} 54. f4
{[%clk 0:00:17.4]} 54... a2 {[%clk 0:00:10.1]} 55. Nc1+ {[%clk 0:00:17.5]} 55...
Kb2 {[%clk 0:00:10.2]} 56. Nxa2 {[%clk 0:00:17.5]} 56... Kxa2 {[%clk 0:00:10.4]}
57. f5 {[%clk 0:00:18.2]} 57... Kb3 {[%clk 0:00:06.1]} 58. f6 {[%clk 0:00:18.3]}
58... Rg4 {[%clk 0:00:06.8]} 59. Kh6 {[%clk 0:00:15]} 59... Kc4 {[%clk
0:00:04.4]} 60. f7 {[%clk 0:00:15.1]} 60... Rf4 {[%clk 0:00:04.9]} 61. Kg7
{[%clk 0:00:15.3]} 61... Kd5 {[%clk 0:00:05.4]} 62. f8=Q {[%clk 0:00:15.6]}
62... Rxf8 {[%clk 0:00:05]} 63. Kxf8 {[%clk 0:00:16.5]} 63... Ke5 {[%clk
0:00:05.4]} 64. Kg7 {[%clk 0:00:16.1]} 64... Kf5 {[%clk 0:00:05.5]} 65. Kh6
{[%clk 0:00:16.6]} 65... Kg4 {[%clk 0:00:05.9]} 66. Kxh7 {[%clk 0:00:16.6]}
66... Kxg5 {[%clk 0:00:06]} 1/2-1/2

[Event "*** Titled Tuesday Blitz"]
[Site "Chess.com"]
[Date "2020.12.29"]
[Round "4"]
[White "LilRag"]
[Black "serhanberat_ozdemir"]
[Result "1-0"]
[WhiteElo "2474"]
[BlackElo "2319"]
[TimeControl "180+1"]
[EndTime "10:40:00 PST"]
[Termination "LilRag won on time"]

1. d4 {[%clk 0:03:00.9]} 1... Nf6 {[%clk 0:02:57.9]} 2. c4 {[%clk 0:03:00.5]}
2... g6 {[%clk 0:02:57.8]} 3. Nc3 {[%clk 0:03:00.5]} 3... Bg7 {[%clk 0:02:58.2]}
4. e4 {[%clk 0:03:00.4]} 4... d6 {[%clk 0:02:56.7]} 5. Be2 {[%clk 0:03:00.6]}
5... O-O {[%clk 0:02:56.6]} 6. Be3 {[%clk 0:03:00.9]} 6... c5 {[%clk 0:02:53.9]}
7. d5 {[%clk 0:03:00.2]} 7... e6 {[%clk 0:02:53.8]} 8. Qd2 {[%clk 0:02:59.4]}
8... exd5 {[%clk 0:02:54.3]} 9. exd5 {[%clk 0:02:59.7]} 9... Nbd7 {[%clk
0:02:45.5]} 10. Nf3 {[%clk 0:02:58.2]} 10... a6 {[%clk 0:02:41.9]} 11. O-O
{[%clk 0:02:48.3]} 11... Re8 {[%clk 0:02:41.5]} 12. Rfe1 {[%clk 0:02:47.7]}
12... Ne4 {[%clk 0:02:41.2]} 13. Nxe4 {[%clk 0:02:47.6]} 13... Rxe4 {[%clk
0:02:42.1]} 14. Bd3 {[%clk 0:02:48.2]} 14... Re8 {[%clk 0:02:34.8]} 15. Bf4
{[%clk 0:02:47.2]} 15... Nf6 {[%clk 0:02:24.1]} 16. Rxe8+ {[%clk 0:02:43.4]}
16... Nxe8 {[%clk 0:02:25]} 17. Re1 {[%clk 0:02:42.4]} 17... Bg4 {[%clk
0:02:24.1]} 18. Ng5 {[%clk 0:02:31.6]} 18... Nf6 {[%clk 0:01:57]} 19. h3 {[%clk
0:02:29.7]} 19... Bc8 {[%clk 0:01:55.4]} 20. b4 {[%clk 0:02:23.9]} 20... b6
{[%clk 0:01:51.9]} 21. a3 {[%clk 0:02:20]} 21... a5 {[%clk 0:01:48.1]} 22. b5
{[%clk 0:02:18.2]} 22... a4 {[%clk 0:01:31.2]} 23. Qe2 {[%clk 0:02:13.1]} 23...
Bf8 {[%clk 0:01:24.9]} 24. Qf3 {[%clk 0:02:07.5]} 24... h6 {[%clk 0:01:20.5]}
25. Ne4 {[%clk 0:01:44.7]} 25... Nxe4 {[%clk 0:01:19.4]} 26. Bxe4 {[%clk
0:01:45.6]} 26... f5 {[%clk 0:01:16]} 27. Bc2 {[%clk 0:01:40.1]} 27... Qf6
{[%clk 0:01:12]} 28. Qg3 {[%clk 0:01:36.2]} 28... Bd7 {[%clk 0:01:04.3]} 29. h4
{[%clk 0:01:33.7]} 29... Re8 {[%clk 0:01:01.3]} 30. Rxe8 {[%clk 0:01:30]} 30...
Bxe8 {[%clk 0:01:02.2]} 31. Bxa4 {[%clk 0:01:29.6]} 31... Qd4 {[%clk 0:00:53.3]}
32. Bb3 {[%clk 0:01:27.7]} 32... Qa1+ {[%clk 0:00:39.9]} 33. Kh2 {[%clk
0:01:26.4]} 33... Qxa3 {[%clk 0:00:40.4]} 34. Qe3 {[%clk 0:01:09.7]} 34... Bf7
{[%clk 0:00:36.2]} 35. g3 {[%clk 0:01:03.8]} 35... Qb2 {[%clk 0:00:25.9]} 36.
Bd1 {[%clk 0:00:56]} 36... Qf6 {[%clk 0:00:20.8]} 37. Kg2 {[%clk 0:00:52]} 37...
Kh7 {[%clk 0:00:19.8]} 38. Bf3 {[%clk 0:00:48.5]} 38... Be7 {[%clk 0:00:20]} 39.
Qa3 {[%clk 0:00:43.3]} 39... g5 {[%clk 0:00:18.7]} 40. hxg5 {[%clk 0:00:43.9]}
40... hxg5 {[%clk 0:00:19.6]} 41. Be3 {[%clk 0:00:44.6]} 41... Kg6 {[%clk
0:00:15.7]} 42. Be2 {[%clk 0:00:39.9]} 42... f4 {[%clk 0:00:02.9]} 43. Bd3+
{[%clk 0:00:39.9]} 43... Kg7 {[%clk 0:00:01.3]} 44. Bc1 {[%clk 0:00:39.3]} 44...
Qh6 {[%clk 0:00:01.5]} 45. Qa7 {[%clk 0:00:33.7]} 45... Bf6 {[%clk 0:00:01.6]}
46. Qd7 {[%clk 0:00:28.6]} 46... Be5 {[%clk 0:00:01.5]} 47. Qg4 {[%clk
0:00:25.2]} 47... Bh5 {[%clk 0:00:01.2]} 48. Qd7+ {[%clk 0:00:22.7]} 48... Bf7
{[%clk 0:00:02.1]} 49. Bf5 {[%clk 0:00:21.1]} 49... Qh5 {[%clk 0:00:02.5]} 50.
g4 {[%clk 0:00:16.8]} 50... Qh6 {[%clk 0:00:02]} 51. Be6 {[%clk 0:00:16.3]}
51... Qf6 {[%clk 0:00:02.6]} 52. Kf3 {[%clk 0:00:13.2]} 52... Kf8 {[%clk
0:00:02.8]} 53. Qc8+ {[%clk 0:00:12.9]} 53... Kg7 {[%clk 0:00:03.1]} 54. Bd2
{[%clk 0:00:11.7]} 54... Bxe6 {[%clk 0:00:02.8]} 55. dxe6 {[%clk 0:00:12]} 55...
Qe7 {[%clk 0:00:03.5]} 56. Ke4 {[%clk 0:00:10.9]} 56... Kf6 {[%clk 0:00:04.1]}
57. Kd5 {[%clk 0:00:11]} 57... Bd4 {[%clk 0:00:03.1]} 58. Qh8+ {[%clk
0:00:10.3]} 58... Qg7 {[%clk 0:00:02.8]} 59. Qxg7+ {[%clk 0:00:10.1]} 59... Kxg7
{[%clk 0:00:03]} 60. Kxd6 {[%clk 0:00:10.7]} 60... Kf6 {[%clk 0:00:02.8]} 61.
Kd7 {[%clk 0:00:10.4]} 1-0

[Event "*** Titled Tuesday Blitz"]
[Site "Chess.com"]
[Date "2020.12.29"]
[Round "4"]
[White "Alexander_Zubov"]
[Black "Mischuk_D"]
[Result "1-0"]
[WhiteElo "2936"]
[BlackElo "2659"]
[TimeControl "180+1"]
[EndTime "10:40:01 PST"]
[Termination "Alexander_Zubov won on time"]

1. d4 {[%clk 0:03:00.9]} 1... d5 {[%clk 0:02:59.9]} 2. c4 {[%clk 0:03:00.4]}
2... e6 {[%clk 0:03:00]} 3. Nf3 {[%clk 0:02:59.5]} 3... c5 {[%clk 0:03:00.2]} 4.
cxd5 {[%clk 0:02:59.1]} 4... exd5 {[%clk 0:03:01.1]} 5. Nc3 {[%clk 0:02:58.7]}
5... Nc6 {[%clk 0:03:01.6]} 6. Bf4 {[%clk 0:02:58.6]} 6... Nf6 {[%clk
0:02:39.8]} 7. e3 {[%clk 0:02:58.3]} 7... c4 {[%clk 0:02:37.1]} 8. a3 {[%clk
0:02:55.3]} 8... Bd6 {[%clk 0:02:30.6]} 9. Bg5 {[%clk 0:02:52.5]} 9... Be7
{[%clk 0:02:14.6]} 10. Qc2 {[%clk 0:02:49.7]} 10... O-O {[%clk 0:02:11]} 11. g3
{[%clk 0:02:46.4]} 11... Be6 {[%clk 0:01:59.8]} 12. Bg2 {[%clk 0:02:40.9]} 12...
h6 {[%clk 0:01:52.5]} 13. Bxf6 {[%clk 0:02:39.2]} 13... Bxf6 {[%clk 0:01:53.4]}
14. O-O {[%clk 0:02:37.5]} 14... Rb8 {[%clk 0:01:53]} 15. b3 {[%clk 0:01:50.9]}
15... b5 {[%clk 0:01:47]} 16. Nd2 {[%clk 0:01:48.2]} 16... Qd7 {[%clk
0:01:42.1]} 17. bxc4 {[%clk 0:01:46.3]} 17... bxc4 {[%clk 0:01:37.8]} 18. Qa4
{[%clk 0:01:46.4]} 18... Rfc8 {[%clk 0:01:02]} 19. Rab1 {[%clk 0:01:32.5]} 19...
Be7 {[%clk 0:00:48.3]} 20. Rxb8 {[%clk 0:01:18.1]} 20... Rxb8 {[%clk 0:00:46.4]}
21. Nxc4 {[%clk 0:01:13.2]} 21... Nxd4 {[%clk 0:00:26.1]} 22. Qxd7 {[%clk
0:01:12.1]} 22... Bxd7 {[%clk 0:00:26.3]} 23. Nxd5 {[%clk 0:01:00.9]} 23... Nc6
{[%clk 0:00:14.8]} 24. Nxe7+ {[%clk 0:00:36]} 24... Nxe7 {[%clk 0:00:15.7]} 25.
Ra1 {[%clk 0:00:33.2]} 25... Be6 {[%clk 0:00:15.6]} 26. Ne5 {[%clk 0:00:29.9]}
26... Nd5 {[%clk 0:00:15.7]} 27. Nc6 {[%clk 0:00:27.5]} 27... Rb7 {[%clk
0:00:10.2]} 28. Nb4 {[%clk 0:00:18.7]} 28... Rd7 {[%clk 0:00:10.4]} 29. Rd1
{[%clk 0:00:16.6]} 29... Nb6 {[%clk 0:00:09.5]} 30. Rxd7 {[%clk 0:00:15.9]}
30... Bxd7 {[%clk 0:00:10.4]} 31. Bf1 {[%clk 0:00:14.1]} 31... Kf8 {[%clk
0:00:10.1]} 32. e4 {[%clk 0:00:13.5]} 32... Ke7 {[%clk 0:00:10.4]} 33. f4 {[%clk
0:00:14.2]} 33... Kd6 {[%clk 0:00:10.7]} 34. Kf2 {[%clk 0:00:12.1]} 34... Kc5
{[%clk 0:00:10.6]} 35. Ke3 {[%clk 0:00:08.4]} 35... Nc4+ {[%clk 0:00:10.9]} 36.
Bxc4 {[%clk 0:00:07.2]} 36... Kxc4 {[%clk 0:00:11.8]} 37. Nd3 {[%clk 0:00:06.5]}
37... Be8 {[%clk 0:00:10.4]} 38. e5 {[%clk 0:00:04.4]} 38... Kb3 {[%clk
0:00:10.7]} 39. Kd4 {[%clk 0:00:04.7]} 39... Kxa3 {[%clk 0:00:10.9]} 40. Kc3
{[%clk 0:00:04.9]} 40... a5 {[%clk 0:00:11.1]} 41. Nc5 {[%clk 0:00:04.8]} 41...
a4 {[%clk 0:00:08.8]} 42. f5 {[%clk 0:00:05]} 42... Ka2 {[%clk 0:00:08.3]} 43.
Kc2 {[%clk 0:00:04.9]} 43... Ka3 {[%clk 0:00:08.1]} 44. e6 {[%clk 0:00:05]}
44... fxe6 {[%clk 0:00:07.9]} 45. Nxe6 {[%clk 0:00:04.9]} 45... g6 {[%clk
0:00:07]} 46. f6 {[%clk 0:00:04.4]} 46... Kb4 {[%clk 0:00:06.3]} 47. Nd8 {[%clk
0:00:02.4]} 47... Kc4 {[%clk 0:00:05.7]} 48. f7 {[%clk 0:00:02.6]} 48... Bxf7
{[%clk 0:00:05.7]} 49. Nxf7 {[%clk 0:00:03.5]} 49... Kd4 {[%clk 0:00:03.8]} 50.
Nxh6 {[%clk 0:00:03.8]} 50... Ke3 {[%clk 0:00:03.8]} 51. Ng4+ {[%clk 0:00:04.4]}
51... Ke4 {[%clk 0:00:03.4]} 52. Kb2 {[%clk 0:00:03.3]} 52... g5 {[%clk
0:00:03.4]} 53. Nf6+ {[%clk 0:00:03.3]} 53... Kf5 {[%clk 0:00:03.4]} 54. Nd5
{[%clk 0:00:02.7]} 54... Ke4 {[%clk 0:00:03.7]} 55. Ne7 {[%clk 0:00:03.2]} 55...
Kf3 {[%clk 0:00:03.6]} 56. Ka3 {[%clk 0:00:03.6]} 56... g4 {[%clk 0:00:01]} 57.
Nf5 {[%clk 0:00:03.6]} 1-0